bitfinex/quotes_ETHUSD_20250925
["timestamp","ask_amount","ask_price","bid_price","bid_amount"]
[1758818371430,2.68901,3974.9,3974.4,4.4596]
[1758818371641,2.913515,3974.8,3974.4,4.4596]
[1758818371847,3.55868469,3975.1,3974.4,0.1256]
[1758818372048,3.792,3974.9,3973.6,0.002]
[1758818372250,0.1256,3974.3,3973.6,0.002]
[1758818372541,14.61796,3974.8,3973.6,0.002]
[1758818372542,0.1256,3974.0,3973.6,0.002]
[1758818372716,3.366831,3973.9,3973.6,0.002]
[1758818375041,0.1256,3974.0,3973.6,0.002]
[1758818375345,8.521552,3973.9,3973.6,0.002]
[1758818375541,2.5164976,3973.8,3973.6,0.002]
[1758818375741,6.551182,3973.7,3973.6,0.002]
[1758818376041,4.517875,3973.7,3973.6,0.002]
[1758818376239,2.6420138,3974.0,3973.6,0.002]
[1758818376240,0.1256,3974.0,3973.6,0.002]
[1758818376460,2.51536275,3975.6,3973.6,3.23270657]
[1758818376769,3.0,3975.4,3973.7,7.48388739]
[1758818377055,13.07499499,3975.3,3973.9,2.51638385]
[1758818377256,3.0,3975.4,3974.5,2.51598804]
[1758818377257,11.436683,3975.2,3974.5,2.51598804]
[1758818377414,3.0,3975.4,3974.3,6.86415887]
[1758818377415,5.51552896,3975.4,3974.3,6.86415887]
[1758818377614,10.544207,3975.3,3974.3,4.5963]
[1758818377943,3.0,3975.7,3974.9,2.51573625]
[1758818378130,17.264582,3975.7,3975.0,0.2483]
[1758818378445,3.0,3975.5,3975.0,0.2483]
[1758818378610,3.0,3975.3,3975.0,0.2483]
[1758818378811,0.6583,3975.4,3974.3,2.51616139]
[1758818379049,2.51562083,3975.2,3974.4,2.51607753]
[1758818379365,1.45913,3975.4,3974.2,4.5983]
[1758818379569,3.491733,3975.3,3974.3,0.2483]
[1758818379769,3.491733,3975.3,3974.3,5.0641]
[1758818379933,2.51559669,3975.2,3974.3,5.0641]
[1758818380263,2.51559669,3975.2,3974.3,4.5983]
[1758818380264,2.51577673,3975.0,3974.3,4.5983]
[1758818380434,2.521094,3974.9,3974.4,2.51609069]
[1758818380634,3.4444,3975.3,3974.4,0.2483]
[1758818380865,9.61376769,3975.2,3974.4,2.76436443]
[1758818381167,7.08652133,3975.1,3974.4,0.2483]
[1758818381369,7.08652133,3975.1,3974.3,6.8661576]
[1758818381370,11.870571,3975.0,3974.3,6.8661576]
[1758818381574,7.19,3975.0,3974.6,2.5159209]
[1758818381863,7.19,3975.0,3974.3,5.019]
[1758818382066,7.19,3975.0,3974.4,2.5160483]
[1758818382361,13.82596,3974.9,3974.4,2.5160483]
[1758818382565,13.82596,3974.9,3974.3,0.2366]
[1758818382787,13.82596,3974.9,3974.4,2.51608219]
[1758818383067,13.82596,3974.9,3974.5,2.5160344]
[1758818383230,12.09713,3974.9,3974.4,0.2366]
[1758818383435,7.19,3975.0,3974.4,0.2366]
[1758818383753,2.96810774,3974.8,3974.1,4.346]
[1758818384076,2.51598185,3974.6,3974.0,0.2366]
[1758818384380,6.244342,3974.5,3973.7,4.049]
[1758818384578,6.244342,3974.5,3973.6,3.18759568]
[1758818384779,2.51610305,3974.4,3973.6,2.75519568]
[1758818384980,7.84666033,3974.3,3973.6,2.75519568]
[1758818385162,2.51611843,3974.4,3973.7,2.51653447]
[1758818385370,3.821154,3974.3,3973.6,0.2386]
[1758818385540,9.517697,3974.5,3973.6,0.2386]
[1758818385846,2.51618718,3974.3,3973.6,2.51859581]
[1758818386046,2.51617471,3974.3,3973.6,0.002]
[1758818386250,7.615742,3974.2,3973.6,0.002]
[1758818386463,2.64206914,3973.9,3973.6,0.002]
[1758818386672,2.51654629,3973.7,3973.6,0.002]
[1758818386875,16.46810629,3973.7,3973.6,0.002]
[1758818387080,17.13420629,3973.7,3973.6,0.002]
[1758818387663,21.47620629,3973.7,3973.6,0.002]
[1758818388764,10.865647,3973.7,3973.6,0.002]
[1758818389067,13.38219329,3973.7,3973.6,0.002]
[1758818389671,10.865647,3973.7,3973.6,0.002]
[1758818389875,11.05205329,3973.7,3973.6,0.002]
[1758818390081,12.58615638,3973.7,3973.6,0.002]
[1758818390654,12.37225638,3973.7,3973.6,0.002]
[1758818390878,15.40667238,3973.7,3973.6,0.002]
[1758818391760,17.27285938,3973.7,3973.6,0.002]
[1758818391960,15.07256038,3973.7,3973.6,0.002]
[1758818392283,3.83638309,3973.7,3973.6,0.002]
[1758818392454,5.20500309,3973.7,3973.6,0.002]
[1758818392650,0.2139,3974.5,3973.6,0.002]
[1758818392885,3.1256,3974.0,3973.6,0.671]
[1758818393084,5.7846,3974.0,3973.7,0.2366]
[1758818393387,0.6661,3974.9,3973.8,0.2366]
[1758818393587,2.64166842,3974.5,3973.8,0.7946]
[1758818393755,11.27365564,3974.4,3973.8,0.7946]
[1758818393954,11.27365564,3974.4,3973.6,0.002]
[1758818393955,4.798076,3974.3,3973.6,0.002]
[1758818394164,0.1256,3974.1,3973.6,0.002]
[1758818394463,4.338,3974.0,3973.6,0.002]
[1758818394662,5.51654629,3973.7,3973.6,0.002]
[1758818395164,20.03000929,3973.7,3973.6,0.002]
[1758818395468,9.85554629,3973.7,3973.6,0.002]
[1758818396365,10.30774629,3973.7,3973.6,0.002]
[1758818397067,6.85554629,3973.7,3973.6,0.002]
[1758818397262,2.51654629,3973.7,3973.6,0.002]
[1758818397599,6.85554629,3973.7,3973.6,0.002]
[1758818398003,14.58543929,3973.7,3973.6,0.002]
[1758818398298,13.11553629,3973.7,3973.6,0.002]
[1758818398489,14.67873549,3973.7,3973.6,0.002]
[1758818399099,22.67304049,3973.7,3973.6,0.002]
[1758818399300,22.69690549,3973.7,3973.6,0.002]
[1758818399907,4.07974549,3973.7,3973.6,0.002]
[1758818400068,3.0,3974.0,3973.6,0.2386]
[1758818400269,3.0,3973.8,3973.7,0.2366]
[1758818400488,3.0,3973.8,3973.6,0.002]
[1758818400489,2.51654629,3973.7,3973.6,0.002]
[1758818400799,6.85254629,3973.7,3973.6,0.002]
[1758818400997,4.336,3973.7,3973.6,0.2386]
[1758818401200,6.85254629,3973.7,3973.6,0.002]
[1758818401583,16.14722342,3973.7,3973.6,0.002]
[1758818401921,11.56944342,3973.7,3973.6,0.002]
[1758818402112,11.03344342,3973.7,3973.6,0.002]
[1758818402421,2.51654629,3973.7,3973.6,0.2386]
[1758818402722,6.85054629,3973.7,3973.6,0.2386]
[1758818403021,11.86308097,3973.6,3973.0,1e-08]
[1758818403201,2.51692632,3973.1,3973.0,1e-08]
[1758818403396,0.4352,3974.0,3973.1,0.2281]
[1758818403608,5.51654714,3973.7,3973.6,0.002]
[1758818403794,15.81987414,3973.7,3973.6,0.002]
[1758818403997,20.19587414,3973.7,3973.6,0.002]
[1758818404196,20.11807414,3973.7,3973.6,0.002]
[1758818404400,20.72586114,3973.7,3973.6,0.002]
[1758818404701,22.44549211,3973.7,3973.6,0.002]
[1758818405026,17.35812211,3973.7,3973.6,0.002]
[1758818405390,7.23617811,3973.7,3973.6,0.002]
[1758818405602,5.51654714,3973.7,3973.6,0.002]
[1758818405928,12.13282214,3973.7,3973.6,0.002]
[1758818406290,19.86273714,3973.7,3973.6,0.002]
[1758818407304,20.30273914,3973.7,3973.6,0.002]
[1758818407627,19.19051314,3973.7,3973.6,0.002]
[1758818407793,14.25222914,3973.7,3973.6,0.002]
[1758818407998,19.32804014,3973.7,3973.6,0.002]
[1758818408392,17.07854714,3973.7,3973.6,0.002]
[1758818408594,17.07454714,3973.7,3973.6,0.002]
[1758818408895,3.0,3973.6,3973.0,1e-08]
[1758818409163,6.30892632,3973.1,3973.0,1e-08]
[1758818409471,10.71092632,3973.1,3973.0,1e-08]
[1758818409677,24.53688632,3973.1,3973.0,1e-08]
[1758818409968,25.18598632,3973.1,3973.0,1e-08]
[1758818410126,25.54988608,3973.1,3973.0,1e-08]
[1758818410963,22.58788608,3973.1,3973.0,1e-08]
[1758818411261,9.94148532,3973.1,3973.0,1e-08]
[1758818411760,15.46558532,3973.1,3973.0,1e-08]
[1758818412260,15.67948532,3973.1,3973.0,1e-08]
[1758818412465,27.31398632,3973.1,3973.0,1e-08]
[1758818412759,27.67788608,3973.1,3973.0,1e-08]
[1758818413190,27.31398632,3973.1,3973.0,1e-08]
[1758818414084,27.67788608,3973.1,3973.0,1e-08]
[1758818414658,28.07269178,3973.1,3973.0,1e-08]
[1758818414969,28.58484795,3973.1,3973.0,1e-08]
[1758818416159,13.61273032,3973.1,3973.0,1e-08]
[1758818416614,14.04213032,3973.1,3973.0,1e-08]
[1758818416885,14.04213032,3973.1,3969.0,0.4684]
[1758818416886,4.70635663,3973.0,3969.0,0.4684]
[1758818417094,0.792,3972.1,3970.0,0.2445]
[1758818417256,2.51858001,3970.5,3970.0,0.2445]
[1758818417453,8.869324,3970.4,3970.1,0.2445]
[1758818417659,5.779243,3970.3,3970.1,0.2445]
[1758818418069,4.897897,3970.3,3970.1,0.2445]
[1758818418289,4.897897,3970.3,3969.6,0.4684]
[1758818418290,6.98081319,3970.2,3969.6,0.2445]
[1758818418488,4.462,3970.2,3969.6,0.2445]
[1758818418664,2.51893395,3970.0,3969.6,0.2445]
[1758818418861,3.45856089,3970.6,3969.7,0.4684]
[1758818418862,0.1256,3969.8,3969.7,0.4684]
[1758818419367,3.0,3970.0,3969.4,0.4684]
[1758818419568,14.61796,3969.9,3968.4,0.02519907]
[1758818419768,0.792,3969.7,3968.2,0.2445]
[1758818419994,2.51955916,3969.0,3968.2,0.2445]
[1758818420176,6.619793,3968.9,3968.2,0.2445]
[1758818420373,4.491,3969.1,3968.3,0.4684]
[1758818420374,3.0,3969.0,3968.3,0.4684]
[1758818420575,4.491,3969.2,3968.4,0.2445]
[1758818420800,3.0,3969.4,3968.5,0.4684]
[1758818421101,2.51919756,3969.6,3968.6,2.3425]
[1758818421283,4.393926,3969.5,3968.7,0.2445]
[1758818421484,9.10106408,3969.4,3968.7,2.3425]
[1758818421798,2.5191455,3969.6,3968.8,0.7129]
[1758818422004,6.96540375,3969.5,3968.9,0.2445]
[1758818422202,4.489,3969.8,3968.9,0.2445]
[1758818422371,2.51926576,3969.5,3968.9,0.2445]
[1758818422568,1.53301793,3968.3,3964.6,0.45393768]
[1758818422804,1.0,3968.9,3960.0,2.52522351]
[1758818422805,12.684273,3961.9,3960.0,2.52522351]
[1758818423117,12.684273,3961.8,3960.1,8.657]
[1758818423407,0.52745549,3961.7,3960.2,7.434]
[1758818423697,0.52745549,3961.7,3959.6,6.559]
[1758818423698,0.52745549,3961.6,3960.3,7.433]
[1758818423903,0.52745549,3961.5,3961.4,2.52436007]
[1758818424128,0.52745549,3961.5,3961.4,5.3622436]
[1758818424129,12.684273,3961.5,3961.4,5.3622436]
[1758818424265,2.19794635,3962.5,3961.4,5.337]
[1758818424470,12.684273,3962.4,3961.5,0.6268]
[1758818424678,12.684273,3962.4,3961.6,0.26974232]
[1758818424890,12.684273,3962.4,3961.7,7.431]
[1758818425082,14.88221935,3962.4,3961.8,1.05028]
[1758818425287,2.19794635,3962.1,3961.9,5.337]
[1758818425494,12.60965213,3962.0,3961.9,2.52402219]
[1758818425679,5.7490839,3964.5,3961.9,2.52402219]
[1758818425680,12.60965213,3962.2,3962.1,5.52391408]
[1758818425889,3.7388882,3962.7,3962.6,2.52359561]
[1758818426068,0.83299259,3963.3,3962.6,2.52356831]
[1758818426267,0.83299259,3963.3,3961.9,5.336]
[1758818426268,0.83299259,3963.4,3963.2,2.52320467]
[1758818426463,1.0,3964.5,3963.3,2.396]
[1758818426713,1.0,3964.7,3963.4,4.496]
[1758818426879,1.0,3964.7,3963.5,2.1]
[1758818427199,1.0,3963.8,3963.1,2.1]
[1758818427412,1.0,3963.8,3963.2,7.453]
[1758818427566,1.0,3963.8,3963.3,2.1]
[1758818427763,1.0,3963.8,3961.5,3.0]
[1758818428008,1.0,3963.1,3962.3,0.2445]
[1758818428245,1.0,3963.9,3962.4,4.905]
[1758818428403,2.52168815,3965.6,3962.4,4.905]
[1758818428404,1.0,3964.5,3962.5,0.2445]
[1758818429043,1.0,3964.4,3962.5,0.2445]
[1758818429342,0.1256,3964.3,3963.6,0.1256]
[1758818429542,1.0,3964.0,3962.9,0.2445]
[1758818429749,1.0,3964.0,3963.0,7.5806]
[1758818429750,0.1256,3963.7,3963.0,7.5806]
[1758818429917,0.1256,3963.7,3963.1,7.47823277]
[1758818430243,1.0,3964.3,3963.2,2.52320549]
[1758818430411,1.0,3964.6,3963.6,2.52292991]
[1758818430739,0.4294,3965.7,3963.6,2.52292991]
[1758818430740,1.0,3964.8,3963.7,0.2445]
[1758818430910,2.0,3964.7,3963.7,0.2445]
[1758818431106,1.0,3964.6,3963.7,2.76739086]
[1758818431307,1.0,3964.6,3963.7,0.2445]
[1758818431511,1.0,3964.8,3963.8,2.333]
[1758818432243,2.0,3964.7,3963.7,0.2445]
[1758818432485,2.0,3964.7,3963.8,7.014]
[1758818432786,2.0,3964.7,3963.2,0.2445]
[1758818433076,6.6669,3964.7,3962.4,0.75872438]
[1758818433245,1.0,3964.1,3962.7,0.2445]
[1758818433441,1.0,3963.5,3962.8,2.101]
[1758818433747,2.0,3962.8,3962.5,2.101]
[1758818433950,1.0,3963.0,3956.4,0.45852291]
[1758818433951,3.0,3962.6,3956.4,0.45852291]
[1758818434149,1.0,3962.5,3960.9,0.75900176]
[1758818434373,1.0,3962.5,3961.0,5.5795]
[1758818434584,1.0,3962.8,3961.1,0.26974551]
[1758818434756,3.19014201,3963.2,3961.1,0.2445]
[1758818434950,1.0,3962.4,3961.2,7.444]
[1758818435156,1.0,3962.7,3961.9,2.52402589]
[1758818435478,2.52289159,3963.8,3961.9,2.52402589]
[1758818435479,1.0,3963.0,3962.0,2.101]
[1758818435690,1.0,3962.7,3961.9,0.2445]
[1758818435872,1.0,3962.9,3962.0,7.438]
[1758818436173,1.0,3962.9,3962.3,2.523743]
[1758818436483,1.0,3963.1,3962.0,7.438]
[1758818436643,1.0,3962.7,3961.0,2.5245908]
[1758818436962,1.0,3962.7,3961.7,0.2445]
[1758818437138,1.0,3962.7,3961.8,2.101]
[1758818437342,1.0,3962.3,3961.3,2.52441976]
[1758818437550,1.0,3962.3,3961.4,7.431]
[1758818437780,1.0,3960.9,3956.5,0.00602722]
[1758818437950,1.0,3960.2,3957.5,0.01673264]
[1758818438149,1.0,3960.3,3957.7,2.52672006]
[1758818438350,1.0,3959.5,3957.8,0.2445]
[1758818438578,1.0,3959.7,3957.9,2.35626592]
[1758818438880,1.0,3960.1,3958.0,0.2445]
[1758818439244,1.0,3960.1,3958.1,6.893]
[1758818439471,1.0,3959.9,3958.6,2.52610279]
[1758818439776,1.0,3959.5,3958.7,7.477]
[1758818439981,1.0,3959.7,3958.8,2.102]
[1758818440179,1.0,3959.9,3958.9,2.52594314]
[1758818440388,1.0,3959.9,3959.4,0.1256]
[1758818440540,0.1256,3960.0,3959.4,0.1256]
[1758818440874,1.1256,3960.3,3959.7,2.52544384]
[1758818441075,1.1256,3960.3,3959.8,7.477]
[1758818441280,1.1256,3960.3,3955.5,1.26836885]
[1758818441281,1.0,3959.9,3957.3,0.4513]
[1758818441588,1.0,3959.6,3957.4,0.6787]
[1758818441740,1.0,3959.6,3957.5,3.22796847]
[1758818442080,1.0,3959.8,3957.6,0.6787]
[1758818442264,1.0,3959.8,3957.9,0.792]
[1758818442452,1.0,3960.0,3958.1,2.52646471]
[1758818442653,1.0,3960.2,3958.4,0.792]
[1758818442845,1.0,3960.2,3958.9,0.002]
[1758818443047,0.2325,3961.1,3959.0,5.6014]
[1758818443280,0.2325,3961.1,3959.1,2.103]
[1758818443479,2.0,3961.0,3959.2,0.6787]
[1758818443680,1.0,3960.8,3959.3,0.2274]
[1758818443900,1.0,3960.5,3959.3,0.2274]
[1758818444053,1.0,3960.5,3959.2,0.4513]
[1758818444249,1.0,3961.0,3959.4,2.52563519]
[1758818444590,1.0,3961.2,3959.6,2.52550762]
[1758818444757,1.0,3961.1,3959.7,6.0537]
[1758818445084,1.0,3961.8,3961.3,2.52436363]
[1758818445287,1.0,3961.8,3961.6,2.52420684]
[1758818445586,0.2325,3962.8,3961.7,7.475]
[1758818445587,1.0,3962.1,3961.7,7.475]
[1758818445743,1.0,3962.1,3961.4,2.75175931]
[1758818445744,1.0,3962.1,3961.8,7.476]
[1758818445948,1.0,3962.7,3962.2,2.52380454]
[1758818446180,1.0,3962.5,3961.9,0.6787]
[1758818446386,1.0,3962.5,3962.0,2.52397778]
[1758818446551,1.0,3962.7,3962.1,2.52391408]
[1758818446794,1.0,3962.7,3961.5,2.52426906]
[1758818447031,14.66550886,3964.3,3961.6,4.5]
[1758818447032,1.0,3962.3,3961.6,4.5]
[1758818447234,1.0,3962.0,3961.7,4.5]
[1758818447526,1.0,3962.0,3961.8,2.103]
[1758818447727,1.0,3962.0,3961.6,2.52420145]
[1758818447728,1.0,3962.0,3961.0,0.6787]
[1758818447949,1.0,3962.0,3961.1,7.465]
[1758818448099,1.0,3962.0,3961.7,2.52410658]
[1758818448299,1.0,3962.0,3961.1,7.465]
[1758818448504,1.0,3962.6,3961.2,0.6787]
[1758818448801,0.6956,3963.3,3961.3,0.2274]
[1758818449036,1.0,3962.6,3962.0,2.52396185]
[1758818449207,1.0,3962.6,3961.4,0.4513]
[1758818449208,1.0,3962.6,3962.1,9.97489924]
[1758818449414,1.0,3963.0,3962.7,2.5235209]
[1758818449599,1.0,3963.0,3962.2,2.7817]
[1758818449799,1.0,3963.1,3962.4,2.52366576]
[1758818450009,1.0,3962.9,3962.2,2.7817]
[1758818450198,1.0,3963.1,3962.3,2.52373518]
[1758818450434,1.0,3962.6,3962.4,5.342]
[1758818450602,1.0,3962.6,3962.4,7.445]
[1758818450803,1.0,3962.9,3962.4,7.445]
[1758818451003,1.0,3963.4,3963.1,2.52326991]
[1758818451245,1.0,3963.4,3962.5,0.2274]
[1758818451448,1.0,3960.1,3958.9,0.2294]
[1758818451618,1.0,3960.1,3959.0,3.7883]
[1758818451817,0.2325,3960.8,3959.7,2.52541167]
[1758818452030,1.0,3960.0,3959.1,0.2274]
[1758818452526,1.0,3960.0,3959.2,5.793]
[1758818452728,1.0,3960.0,3959.3,2.52569898]
[1758818452942,1.0,3960.0,3959.6,2.52545605]
[1758818453143,1.0,3960.0,3959.3,2.52569898]
[1758818453347,1.0,3960.0,3959.2,5.793]
[1758818453846,1.0,3960.0,3959.3,2.52569898]
[1758818454031,1.0,3960.0,3959.2,5.793]
[1758818454032,1.0,3960.0,3959.6,2.52545523]
[1758818454236,1.0,3960.0,3959.3,2.52569898]
[1758818454549,1.0,3959.8,3959.2,5.793]
[1758818454732,1.0,3959.8,3959.7,2.52538632]
[1758818454937,1.0,3960.3,3959.7,5.7374]
[1758818455119,1.0,3959.8,3959.7,7.8404]
[1758818455319,1.0,3960.1,3959.8,2.52538006]
[1758818455522,0.2325,3961.0,3960.1,2.52513402]
[1758818455717,1.0,3960.3,3960.2,2.52508855]
[1758818455916,1.0,3960.3,3959.9,0.2274]
[1758818456138,1.0,3960.3,3960.0,7.603]
[1758818456540,1.0,3960.3,3959.2,0.2274]
[1758818456541,1.0,3960.5,3960.1,7.601]
[1758818456746,1.0,3960.3,3960.2,2.103]
[1758818456949,1.0,3960.4,3959.6,0.2274]
[1758818457113,1.0,3960.0,3959.0,0.2274]
[1758818457446,1.0,3960.0,3959.2,2.52576278]
[1758818457617,1.0,3960.2,3959.4,2.52561807]
[1758818457818,1.0,3960.2,3960.1,2.52518875]
[1758818458025,1.0,3960.2,3960.1,7.589]
[1758818458844,1.0,3960.4,3960.1,10.34157531]
[1758818459124,6.95075589,3962.9,3960.3,2.52506123]
[1758818459125,1.0,3960.6,3960.3,2.52506123]
[1758818459321,1.0,3960.6,3960.4,0.6787]
[1758818459521,1.0,3961.2,3960.4,3.20363568]
[1758818459861,1.0,3960.9,3960.6,2.52484413]
[1758818460165,1.0,3960.9,3960.7,2.52474765]
[1758818460460,1.0,3961.7,3961.4,2.52436007]
[1758818460758,1.0,3961.7,3961.6,2.52423263]
[1758818461050,1.0,3961.7,3960.8,0.6787]
[1758818461051,1.0,3961.4,3961.1,2.52453191]
[1758818461222,1.0,3961.4,3960.9,2.52467639]
[1758818461417,1.0,3961.4,3961.2,5.5856]
[1758818461855,1.0,3961.1,3960.1,0.4513]
[1758818462170,1.0,3961.1,3961.0,0.1256]
[1758818462370,1.2325,3961.1,3961.0,0.1256]
[1758818462526,1.2325,3961.1,3959.6,0.4513]
[1758818462527,1.0,3960.8,3960.5,0.1256]
[1758818462839,0.6956,3961.1,3959.9,2.52531629]
[1758818462840,1.0,3960.0,3959.9,2.52531629]
[1758818463040,1.0,3960.4,3960.3,2.52504039]
[1758818463249,1.0,3960.2,3959.9,0.2426]
[1758818463445,1.0,3960.2,3960.1,2.52518875]
[1758818463618,1.0,3960.5,3960.1,0.2426]
[1758818463822,1.0,3960.5,3960.4,2.52499747]
[1758818464022,1.0,3961.3,3961.2,2.52448752]
[1758818464265,1.0,3961.3,3961.2,10.06848752]
[1758818464432,1.0,3961.5,3961.4,2.52436007]
[1758818464627,1.0,3961.3,3961.2,7.544]
[1758818464822,1.0,3961.3,3961.2,5.435]
[1758818465048,1.0,3961.3,3961.2,10.06348752]
[1758818465255,1.0,3961.3,3961.2,7.539]
[1758818465469,1.0,3961.3,3961.2,10.06348752]
[1758818465676,1.0,3961.3,3961.2,7.95748752]
[1758818465883,2.52247318,3964.4,3961.2,7.95748752]
[1758818465884,1.0,3962.6,3961.2,14.81]
[1758818466170,0.2276,3963.8,3961.4,2.52436007]
[1758818466382,1.0,3963.0,3961.9,0.792]
[1758818466562,1.0,3962.8,3962.0,0.2426]
[1758818466872,1.0,3962.6,3962.1,5.424]
[1758818467167,1.0,3962.6,3962.2,5.423]
[1758818467367,1.0,3962.6,3961.5,3.23125236]
[1758818467570,1.0,3962.3,3962.1,2.52390994]
[1758818467774,1.0,3962.3,3962.2,5.419]
[1758818467975,1.0,3962.3,3962.2,7.94285038]
[1758818468175,1.0,3962.3,3962.2,5.419]
[1758818468387,1.0,3961.8,3960.8,0.2426]
[1758818468676,1.0,3961.8,3961.6,2.5242282]
[1758818468844,1.0,3961.8,3961.7,7.514]
[1758818469149,1.0,3961.8,3961.7,7.512]
[1758818469865,1.0,3961.6,3960.9,2.52466005]
[1758818470187,1.0,3961.6,3961.0,7.502]
[1758818470366,1.0,3961.6,3961.4,2.52431415]
[1758818470692,1.0,3961.6,3961.5,5.398]
[1758818470989,1.0,3961.6,3961.5,5.396]
[1758818471646,1.0,3961.6,3961.5,7.92029635]
[1758818471842,0.792,3961.3,3959.8,0.002]
[1758818472073,1.0,3960.4,3959.8,0.002]
[1758818472274,3.0,3961.1,3959.8,0.002]
[1758818472275,1.0,3959.9,3959.8,0.002]
[1758818472475,1.0,3960.1,3959.8,0.002]
[1758818472675,1.0,3959.9,3959.8,0.002]
[1758818473041,1.8087,3959.9,3959.8,0.002]
[1758818473463,4.33401629,3959.9,3959.8,0.002]
[1758818473644,1.0,3958.9,3958.7,0.007]
[1758818473977,1.0,3958.9,3958.7,2.53307551]
[1758818474183,1.0,3958.9,3958.8,2.52601798]
[1758818474347,1.0,3958.9,3958.8,2.55127815]
[1758818474547,0.2404,3959.9,3958.9,2.52594773]
[1758818474548,1.0,3959.1,3958.9,2.52594773]
[1758818474748,1.0,3958.9,3958.8,2.65161798]
[1758818474949,1.0,3959.1,3959.0,2.65149037]
[1758818475202,1.0,3959.1,3959.0,2.52589037]
[1758818475361,1.0,3959.4,3959.3,2.52569898]
[1758818475563,1.0,3959.4,3959.3,10.03869898]
[1758818475760,1.0,3959.4,3959.3,7.513]
[1758818476071,1.0,3958.9,3958.7,5.408]
[1758818476583,1.0,3958.9,3958.8,10.03801798]
[1758818476879,1.0,3959.1,3959.0,2.52589037]
[1758818477101,5.08,3961.6,3959.0,2.52589037]
[1758818477102,1.0,3959.6,3959.5,2.52557141]
[1758818477303,0.4427,3960.5,3958.7,0.003]
[1758818477304,1.0,3959.4,3958.7,0.003]
[1758818477445,1.0,3959.2,3958.8,7.506]
[1758818477760,1.0,3959.2,3958.7,0.003]
[1758818477973,1.0,3958.8,3958.7,0.003]
[1758818478177,1.0,3958.8,3958.7,7.505]
[1758818478571,1.0,3958.8,3958.7,7.499]
[1758818479577,1.0,3958.8,3958.7,5.386]
[1758818479790,1.0,3958.8,3958.7,7.49]
[1758818480388,1.0,3959.4,3958.9,2.52595417]
[1758818480608,1.0,3959.4,3959.3,2.52569898]
[1758818480802,1.0,3959.4,3959.3,7.90769898]
[1758818481301,1.0,3959.9,3959.8,2.52538006]
[1758818481504,2.52358132,3962.7,3960.1,2.52518875]
[1758818481505,1.0,3960.2,3960.1,2.52518875]
[1758818481704,1.0,3960.6,3960.5,2.52493372]
[1758818482003,1.0,3960.6,3960.5,5.376]
[1758818482202,1.0,3960.6,3960.5,5.373]
[1758818482402,1.0,3960.6,3960.5,7.89793372]
[1758818482604,1.0,3960.8,3960.7,2.52480622]
[1758818482902,0.2404,3961.7,3961.1,2.52452999]
[1758818483212,1.0,3961.3,3961.2,7.473]
[1758818483504,1.0,3961.3,3961.2,5.367]
[1758818484072,1.0,3961.1,3960.0,0.2467]
[1758818484278,1.0,3960.6,3960.2,2.52506411]
[1758818484496,1.0,3960.4,3960.3,2.52504989]
[1758818484700,1.0,3960.4,3960.2,2.52511618]
[1758818484874,1.0,3960.2,3960.1,9.9921816]
[1758818485205,1.0,3960.2,3960.1,5.36]
[1758818485708,1.0,3960.6,3960.5,2.52493372]
[1758818486004,1.0,3960.6,3960.5,9.98293372]
[1758818486222,1.0,3961.0,3960.9,2.52467873]
[1758818486422,1.0,3961.4,3961.3,2.5244238]
[1758818486728,1.0,3961.4,3961.3,5.353]
[1758818487003,1.0,3961.4,3961.3,9.9814238]
[1758818487173,1.0,3961.4,3961.3,7.457]
[1758818487372,1.0,3961.4,3961.3,9.9814238]
[1758818487603,1.2404,3961.4,3961.3,7.457]
[1758818487806,1.0,3960.9,3960.8,2.104]
[1758818487973,1.0,3961.2,3961.1,2.52455126]
[1758818488176,1.0,3961.2,3961.1,7.86755126]
[1758818490772,1.0,3961.2,3961.1,5.343]
[1758818491005,1.0,3961.2,3961.1,5.318]
[1758818491283,1.6831,3961.2,3961.1,5.318]
[1758818491675,1.6831,3961.2,3961.1,5.314]
[1758818491985,1.6831,3961.2,3961.1,7.83855126]
[1758818492184,1.0,3961.2,3961.1,7.83855126]
[1758818492686,1.0,3961.2,3961.1,5.314]
[1758818492890,1.6831,3961.2,3961.1,7.83855126]
[1758818493325,1.6831,3961.2,3961.1,5.314]
[1758818494323,1.0,3960.7,3960.4,2.52499747]
[1758818494489,1.0,3960.7,3960.6,2.52486996]
[1758818495307,1.0,3960.7,3960.6,9.91486996]
[1758818498416,1.0,3960.7,3960.6,10.16156996]
[1758818498614,1.0,3960.7,3960.6,10.28716996]
[1758818498912,1.0,3960.7,3960.6,10.75926996]
[1758818499991,1.0,3960.7,3960.6,8.61626996]
[1758818500184,1.0,3960.7,3960.6,10.24816996]
[1758818500411,1.0,3960.9,3960.8,2.52474247]
[1758818500714,1.0,3960.9,3960.8,8.14204247]
[1758818501304,1.0,3960.9,3960.8,8.57984247]
[1758818501817,1.0,3960.9,3960.8,8.14204247]
[1758818502391,1.0,3960.1,3960.0,2.52525252]
[1758818502713,1.0,3960.5,3960.4,2.52499747]
[1758818502915,1.0,3960.5,3960.4,7.75999747]
[1758818503420,1.0,3960.7,3960.6,2.52486996]